fUST/lending_fUST_20260304
["ID","MTS","AMOUNT","RATE_DAILY","PERIOD"]
[407662247,1772628603813,390.46,6.9e-05,2]
[407662248,1772628604279,390.46,6.9e-05,2]
[407662249,1772628605009,390.46,6.9e-05,2]
[407662264,1772628631940,-159.05,7e-05,2]
[407662266,1772628631952,-159.05,7e-05,2]
[407662268,1772628631961,-346.95,7e-05,2]
[407662273,1772628631996,-43.51,7e-05,2]
[407662275,1772628632006,-242.93791986,7e-05,2]
[407662277,1772628632017,-147.52208014,7e-05,2]
[407662279,1772628632027,-390.46,7e-05,2]
[407662281,1772628632036,-390.46,7e-05,2]
[407662283,1772628632045,-519.0,7e-05,2]
[407662285,1772628632055,-390.46,7e-05,2]
[407662287,1772628632064,-390.46,7e-05,2]
[407662289,1772628632074,-390.46,7e-05,2]
[407662292,1772628632083,-159.05,7.1e-05,2]
[407662294,1772628632093,-159.05,7.1e-05,2]
[407662297,1772628632102,-390.46,7.1e-05,2]
[407662299,1772628632112,-390.46,7.1e-05,2]
[407662301,1772628632121,-390.46,7.1e-05,2]
[407662303,1772628632131,-390.46,7.1e-05,2]
[407662305,1772628632141,-390.46,7.1e-05,2]
[407662307,1772628632149,-390.46,7.1e-05,2]
[407662309,1772628632159,-390.46,7.1e-05,2]
[407662311,1772628632168,-300.0,7.139e-05,2]
[407662313,1772628632178,-300.0,7.139e-05,2]
[407662315,1772628632187,-300.0,7.139e-05,2]
[407662317,1772628632200,-300.0,7.139e-05,2]
[407662319,1772628632212,-300.0,7.139e-05,2]
[407662321,1772628632222,-300.0,7.139e-05,2]
[407662323,1772628632232,-300.0,7.139e-05,2]
[407662325,1772628632242,-300.0,7.139e-05,2]
[407662327,1772628632255,-300.0,7.139e-05,2]
[407662329,1772628632265,-300.0,7.139e-05,2]
[407662331,1772628632274,-300.0,7.139e-05,2]
[407662333,1772628632284,-300.0,7.139e-05,2]
[407662336,1772628632294,-300.0,7.139e-05,2]
[407662338,1772628632304,-300.0,7.139e-05,2]
[407662340,1772628632313,-300.0,7.139e-05,2]
[407662342,1772628632324,-159.05,7.2e-05,2]
[407662344,1772628632333,-159.05,7.2e-05,2]
[407662346,1772628632343,-390.46,7.2e-05,2]
[407662348,1772628632353,-390.46,7.2e-05,2]
[407662350,1772628632362,-390.46,7.2e-05,2]
[407662352,1772628632371,-390.46,7.2e-05,2]
[407662354,1772628632381,-390.46,7.2e-05,2]
[407662356,1772628632391,-390.46,7.2e-05,2]
[407662358,1772628632401,-67.87645432,7.2e-05,2]
[407662425,1772628638264,-19523.77602673,7.1e-05,2]
[407662426,1772628638278,-322.58354568,7.2e-05,2]
[407662427,1772628638296,-600.0,7.241e-05,2]
[407662428,1772628638309,-159.05,7.3e-05,2]
[407662429,1772628638321,-159.05,7.3e-05,2]
[407662430,1772628638332,-390.46,7.3e-05,2]
[407662431,1772628638346,-390.46,7.3e-05,2]
[407662432,1772628638361,-390.46,7.3e-05,2]
[407662433,1772628638374,-390.46,7.3e-05,2]
[407662434,1772628638389,-390.46,7.3e-05,2]
[407662435,1772628638401,-390.46,7.3e-05,2]
[407662436,1772628638416,-390.46,7.3e-05,2]
[407662437,1772628638431,-300.0,7.396e-05,2]
[407662438,1772628638445,-300.0,7.396e-05,2]
[407662439,1772628638458,-300.0,7.396e-05,2]
[407662440,1772628638470,-300.0,7.396e-05,2]
[407662441,1772628638481,-1200.0,7.396e-05,2]
[407662442,1772628638497,-159.05,7.4e-05,2]
[407662443,1772628638511,-159.05,7.4e-05,2]
[407662444,1772628638522,-390.46,7.4e-05,2]
[407662445,1772628638534,-390.46,7.4e-05,2]
[407662446,1772628638548,-390.46,7.4e-05,2]
[407662447,1772628638562,-390.46,7.4e-05,2]
[407662448,1772628638574,-390.46,7.4e-05,2]
[407662449,1772628638585,-390.46,7.4e-05,2]
[407662450,1772628638597,-390.46,7.4e-05,2]
[407662451,1772628638615,-390.46,7.4e-05,2]
[407662452,1772628638627,-159.05,7.5e-05,2]
[407662453,1772628638639,-159.05,7.5e-05,2]
[407662454,1772628638651,-159.05,7.5e-05,2]
[407662455,1772628638664,-390.46,7.5e-05,2]
[407662456,1772628638675,-390.46,7.5e-05,2]
[407662457,1772628638687,-390.46,7.5e-05,2]
[407662458,1772628638699,-390.46,7.5e-05,2]
[407662459,1772628638712,-390.46,7.5e-05,2]
[407662460,1772628638724,-390.46,7.5e-05,2]
[407662461,1772628638736,-390.46,7.5e-05,2]
[407662462,1772628638748,-159.05,7.6e-05,2]
[407662463,1772628638760,-390.46,7.6e-05,2]
[407662464,1772628638772,-390.46,7.6e-05,2]
[407662465,1772628638784,-390.46,7.6e-05,2]
[407662466,1772628638796,-720.0,7.965e-05,2]
[407662467,1772628638808,-300.0,8.136e-05,2]
[407662468,1772628638820,-420.0,8.136e-05,2]
[407662469,1772628638832,-1200.0,8.136e-05,2]
[407662470,1772628638845,-158.18114817,8.761e-05,2]
[407662471,1772628638856,-864.0,8.762e-05,2]
[407662472,1772628638868,-587.0,8.949e-05,2]
[407662473,1772628638881,-503.92684003,9.025e-05,2]
[407662474,1772628638893,-1000.0,9.638e-05,2]
[407662475,1772628638905,-823.0,9.844e-05,2]
[407662476,1772628638917,-5469.40126164,9.907e-05,2]
[407662477,1772628638931,-10061.79007606,9.907e-05,2]
[407662478,1772628638944,-2000.0,0.0001,2]
[407662479,1772628638955,-2934.99052942,0.00010196,2]
[407662480,1772628638968,-346.93785643,0.00010407,2]
[407662481,1772628638980,-168.3888056,0.00010407,2]
[407662482,1772628638992,-174.61919141,0.00010407,2]
[407662483,1772628639006,-181.08010149,0.00010407,2]
[407662484,1772628639021,-187.78006525,0.00010407,2]
[407662485,1772628639033,-194.72792766,0.00010407,2]
[407662486,1772628639045,-201.93286099,0.00010407,2]
[407662487,1772628639057,-209.40437684,0.00010407,2]
[407662488,1772628639068,-217.15233878,0.00010407,2]
[407662489,1772628639080,-225.18697532,0.00010407,2]
[407662490,1772628639092,-233.51889341,0.00010407,2]
[407662491,1772628639104,-242.15909246,0.00010407,2]
[407662492,1772628639115,-251.11897888,0.00010407,2]
[407662493,1772628639127,-260.4103811,0.00010407,2]
[407662494,1772628639138,-270.0455652,0.00010407,2]
[407662495,1772628639150,-557.5788265,0.00010407,2]
[407662496,1772628639162,-280.03725112,0.00010407,2]
[407662497,1772628639174,-290.39862941,0.00010407,2]
[407662498,1772628639186,-2230.315306,0.00010407,2]
[407662499,1772628639198,-301.1433787,0.00010407,2]
[407662500,1772628639211,-1000.0,0.00010602,2]
[407662501,1772628639222,-244.0,0.00010602,2]
[407662502,1772628639234,-1152.0,0.00010828,2]
[407662503,1772628639247,-167.065,0.00010848,2]
[407662504,1772628639261,-578.20924308,0.00010955,2]
[407662505,1772628639272,-2312.83697232,0.00010955,2]
[407662506,1772628639284,-463.98451705,0.00010956,2]
[407662507,1772628639296,-191.11021781,0.00010957,2]
[407662508,1772628639307,-1678.09101078,0.00010958,2]
[407662575,1772628646856,-2475.18,0.00010958,2]
[407662582,1772628646919,-6124.837395,0.00010958,2]
[407662595,1772628830897,168.9333,4.52e-05,2]
[407662597,1772628951450,221.13,0.0001,10]
[407662598,1772629007268,3925.1378426,6.517e-05,2]
[407662599,1772629203925,182.89,6.9e-05,2]
[407662607,1772629506696,4119.39340059,6.9e-05,2]
[407662629,1772629622168,5000.0,6.9e-05,2]
[407662630,1772629647680,3472.56440966,6.9e-05,2]
[407662677,1772629832234,-520.0,7.082e-05,2]
[407662679,1772629832243,-419.97810729,7.082e-05,2]
[407662681,1772629832253,-182.89,7.1e-05,2]
[407662683,1772629832262,-1200.0,7.152e-05,2]
[407662685,1772629832272,-500.0,7.153e-05,2]
[407662687,1772629832281,-500.0,7.153e-05,2]
[407662689,1772629832290,-500.0,7.153e-05,2]
[407662691,1772629832300,-300.0,7.187e-05,2]
[407662693,1772629832309,-2218.17948012,7.19e-05,2]
[407662695,1772629832321,-6839.23798173,7.19e-05,2]
[407662698,1772629832332,-232.58253815,7.19e-05,2]
[407662701,1772629832341,-500.0,7.198e-05,2]
[407662703,1772629832350,-500.0,7.198e-05,2]
[407662706,1772629832359,-500.0,7.198e-05,2]
[407662708,1772629832368,-500.0,7.198e-05,2]
[407662711,1772629832377,-500.0,7.198e-05,2]
[407662713,1772629832387,-500.0,7.198e-05,2]
[407662715,1772629832396,-138.39627086,7.198e-05,2]
[407662744,1772629838469,-361.60372914,7.198e-05,2]
[407662745,1772629838479,-500.0,7.198e-05,2]
[407662746,1772629838488,-597.38142939,7.198e-05,2]
[407662747,1772629838497,-500.0,7.198e-05,2]
[407662748,1772629838507,-376.69335585,7.198e-05,2]
[407662749,1772629838515,-500.0,7.198e-05,2]
[407662750,1772629838525,-473.81429395,7.198e-05,2]
[407662751,1772629838534,-10729.7816108,7.199e-05,2]
[407662752,1772629838546,-6150.13040217,7.199e-05,2]
[407662754,1772629840933,-1119.34001489,7.126e-05,2]
[407662787,1772629844158,-691.87815354,7.126e-05,2]
[407662788,1772629844169,-2749.10064455,7.199e-05,2]
[407662789,1772629844202,-3712.7917018,7.199e-05,2]
[407662790,1772629844215,-2613.83380403,7.199e-05,2]
[407662806,1772629846287,-14970.90944582,7.199e-05,2]
[407662807,1772629861556,-200000.0,7.199e-05,2]
[407662808,1772630070269,375.12216432,6.9e-05,2]
[407662809,1772630403627,286.45,6.9e-05,2]
[407662810,1772630440993,2486.87899912,6.9e-05,2]
[407662811,1772630469670,300.0,6.26e-05,2]
[407662812,1772630578817,250.0,6.9e-05,2]
[407662813,1772630580142,518.019,0.000157,120]
[407662818,1772631032299,-500.0,6.997e-05,2]
[407662820,1772631032309,-209.9972449,6.997e-05,2]
[407662822,1772631032318,-500.0,6.997e-05,2]
[407662824,1772631032328,-304.65834723,6.997e-05,2]
[407662826,1772631032338,-500.0,6.997e-05,2]
[407662828,1772631032347,-500.0,6.997e-05,2]
[407662830,1772631032357,-500.0,6.997e-05,2]
[407662832,1772631032366,-500.0,6.997e-05,2]
[407662834,1772631032375,-500.0,6.997e-05,2]
[407662836,1772631032384,-500.0,6.997e-05,2]
[407662838,1772631032393,-110.32743587,6.997e-05,2]
[407662841,1772631032420,-389.67256413,6.997e-05,2]
[407662843,1772631032429,-500.0,6.997e-05,2]
[407662845,1772631032438,-500.0,6.997e-05,2]
[407662847,1772631032448,-303.65918789,6.997e-05,2]
[407662848,1772631032457,-500.0,6.997e-05,2]
[407662850,1772631032467,-500.0,6.997e-05,2]
[407662852,1772631032477,-500.0,6.997e-05,2]
[407662854,1772631032486,-500.0,6.997e-05,2]
[407662856,1772631032495,-500.0,6.997e-05,2]
[407662858,1772631032504,-350.22540602,6.997e-05,2]
[407662860,1772631032517,-178.5110711,6.997e-05,2]
[407662862,1772631032526,-191.1766762,6.997e-05,2]
[407662919,1772631038578,-18.03162659,6.997e-05,2]
[407662920,1772631038588,-500.0,6.997e-05,2]
[407662921,1772631038598,-500.0,6.997e-05,2]
[407662922,1772631038607,-500.0,6.997e-05,2]
[407662923,1772631038617,-500.0,6.997e-05,2]
[407662924,1772631038627,-500.0,6.997e-05,2]
[407662925,1772631038636,-500.0,6.997e-05,2]
[407662926,1772631038647,-500.0,6.997e-05,2]
[407662927,1772631038656,-500.0,6.997e-05,2]
[407662928,1772631038666,-500.0,6.997e-05,2]
[407662929,1772631038678,-500.0,6.997e-05,2]
[407662930,1772631038689,-500.0,6.997e-05,2]
[407662931,1772631038698,-500.0,6.997e-05,2]
[407662932,1772631038707,-500.0,6.997e-05,2]
[407662933,1772631038715,-500.0,6.997e-05,2]
[407662934,1772631038724,-500.0,6.997e-05,2]
[407662935,1772631038732,-500.0,6.997e-05,2]
[407662936,1772631038741,-500.0,6.997e-05,2]
[407662937,1772631038750,-500.0,6.997e-05,2]
[407662938,1772631038759,-500.0,6.997e-05,2]
[407662939,1772631038768,-500.0,6.997e-05,2]
[407662940,1772631038778,-500.0,6.997e-05,2]
[407662941,1772631038787,-500.0,6.997e-05,2]
[407662942,1772631038796,-500.0,6.997e-05,2]
[407662943,1772631038805,-500.0,6.997e-05,2]
[407662944,1772631038815,-500.0,6.997e-05,2]
[407662945,1772631038825,-500.0,6.997e-05,2]
[407662946,1772631038835,-500.0,6.997e-05,2]
[407662947,1772631038845,-500.0,6.997e-05,2]
[407662948,1772631038854,-500.0,6.997e-05,2]
[407662949,1772631038863,-500.0,6.997e-05,2]
[407662950,1772631038873,-500.0,6.997e-05,2]
[407662951,1772631038882,-500.0,6.997e-05,2]
[407662952,1772631038891,-500.0,6.997e-05,2]
[407662953,1772631038900,-485.25016219,6.997e-05,2]
[407662954,1772631038909,-500.0,6.997e-05,2]
[407662955,1772631038919,-500.0,6.997e-05,2]
[407662956,1772631038928,-300.0,6.997e-05,2]
[407662957,1772631038937,-300.0,6.997e-05,2]
[407662958,1772631038947,-300.0,6.997e-05,2]
[407662959,1772631038956,-300.0,6.997e-05,2]
[407662960,1772631038966,-300.0,6.997e-05,2]
[407662961,1772631038981,-1200.0,6.997e-05,2]
[407662962,1772631038990,-519.0,6.997e-05,2]
[407662963,1772631039000,-428.54270909,6.998e-05,2]
[407662964,1772631039010,-25737.68856195,6.999e-05,2]
[407662965,1772631039030,-59481.02843407,6.999e-05,2]
[407662966,1772631039041,-1756.27966031,6.999e-05,2]
[407662969,1772631041052,-256.19972381,6.999e-05,2]
[407662980,1772631043533,-1823.77348255,6.999e-05,2]
[407662981,1772631045798,-658.98624828,6.999e-05,2]
[407662991,1772631046500,-11490.74,6.999e-05,2]
[407663005,1772631661884,1592.7625988,6.407e-05,2]
[407663006,1772631667093,151.16,0.000157,120]
[407663007,1772632085830,158.08824723,6.818e-05,2]
[407663018,1772632231518,-423.51185491,6.998e-05,2]
[407663020,1772632231528,-519.0,6.998e-05,2]
[407663022,1772632231538,-390.282708,6.999e-05,2]
[407663024,1772632231548,-681.56722471,7.1e-05,2]
[407663026,1772632231559,-300.0,7.341e-05,2]
[407663028,1772632231570,-757.98106536,7.342e-05,2]
[407663035,1772632231622,-640.63966257,7.342e-05,2]
[407663116,1772632237694,-425.15275462,7.342e-05,2]
[407663117,1772632237704,-422.62879866,7.342e-05,2]
[407663118,1772632237713,-500.0,7.342e-05,2]
[407663119,1772632237723,-500.0,7.342e-05,2]
[407663120,1772632237732,-500.0,7.342e-05,2]
[407663121,1772632237742,-500.0,7.342e-05,2]
[407663122,1772632237751,-478.51285008,7.342e-05,2]
[407663123,1772632237760,-500.0,7.342e-05,2]
[407663124,1772632237770,-154.41048885,7.342e-05,2]
[407663125,1772632237779,-500.0,7.342e-05,2]
[407663126,1772632237788,-500.0,7.342e-05,2]
[407663127,1772632237798,-500.0,7.342e-05,2]
[407663128,1772632237807,-225.41516412,7.342e-05,2]
[407663129,1772632237817,-500.0,7.342e-05,2]
[407663130,1772632237826,-336.61287956,7.342e-05,2]
[407663131,1772632237835,-500.0,7.342e-05,2]
[407663132,1772632237847,-500.0,7.342e-05,2]
[407663133,1772632237857,-500.0,7.342e-05,2]
[407663134,1772632237867,-524.86959346,7.342e-05,2]
[407663135,1772632237876,-500.0,7.342e-05,2]
[407663136,1772632237886,-500.0,7.342e-05,2]
[407663137,1772632237895,-500.0,7.342e-05,2]
[407663138,1772632237906,-500.0,7.342e-05,2]
[407663139,1772632237915,-500.0,7.342e-05,2]
[407663140,1772632237924,-500.0,7.342e-05,2]
[407663141,1772632237934,-500.0,7.342e-05,2]
[407663142,1772632237944,-500.0,7.342e-05,2]
[407663143,1772632237954,-500.0,7.342e-05,2]
[407663144,1772632237965,-500.0,7.342e-05,2]
[407663145,1772632237975,-500.0,7.342e-05,2]
[407663146,1772632237986,-500.0,7.342e-05,2]
[407663147,1772632237996,-500.0,7.342e-05,2]
[407663148,1772632238006,-500.0,7.342e-05,2]
[407663149,1772632238015,-500.0,7.342e-05,2]
[407663150,1772632238028,-500.0,7.342e-05,2]
[407663151,1772632238038,-500.0,7.342e-05,2]
[407663152,1772632238048,-500.0,7.342e-05,2]
[407663153,1772632238058,-500.0,7.342e-05,2]
[407663154,1772632238067,-500.0,7.342e-05,2]
[407663155,1772632238077,-500.0,7.342e-05,2]
[407663156,1772632238086,-500.0,7.342e-05,2]
[407663157,1772632238095,-500.0,7.342e-05,2]
[407663158,1772632238105,-500.0,7.342e-05,2]
[407663159,1772632238114,-210025.21624026,7.343e-05,2]
[407663160,1772632238138,-5753.547168,7.343e-05,2]
[407663183,1772632245447,-663.26203828,7.343e-05,2]
[407663188,1772632245934,-5451.62953452,7.343e-05,2]
[407663189,1772632245954,-33960.4653398,7.343e-05,2]
[407663229,1772632746265,175.451983,6.539e-05,2]
[407663230,1772632843053,-1712.45079201,7.026e-05,2]
[407663232,1772633031750,3287.54920799,6.9e-05,2]
[407663233,1772633242733,1000.0,9.489e-05,30]
[407663234,1772633242759,1000.0,9.489e-05,30]
[407663235,1772633242783,1000.0,9.489e-05,30]
[407663236,1772633242808,657.28,9.489e-05,30]
[407663237,1772633345413,-150.0,0.00010068,30]
[407663238,1772633347477,-150.0,0.00010068,30]
[407663239,1772633348420,-150.0,0.00010068,30]
[407663249,1772633349226,-150.0,0.00010068,30]
[407663250,1772633350138,-150.0,0.00010068,30]
[407663252,1772633351474,-150.0,0.00010068,30]
[407663254,1772633352226,-150.0,0.00010068,30]
[407663255,1772633352960,-150.0,0.00010068,30]
[407663267,1772633353666,-150.0,0.00010068,30]
[407663268,1772633354499,-150.0,0.00010068,30]
[407663278,1772633357541,342.72,9.588e-05,30]
[407663279,1772633357570,1000.0,9.588e-05,30]
[407663336,1772633431699,-518.0,6.906e-05,2]
[407663337,1772633431713,-392.45373111,6.906e-05,2]
[407663338,1772633431725,-418.58161781,6.984e-05,2]
[407663339,1772633431736,-192.484,7.197e-05,2]
[407663340,1772633431748,-300.0,7.243e-05,2]
[407663341,1772633431759,-300.0,7.243e-05,2]
[407663342,1772633431771,-1200.0,7.243e-05,2]
[407663343,1772633431786,-300.0,7.243e-05,2]
[407663344,1772633431798,-300.0,7.243e-05,2]
[407663345,1772633431810,-58645.80854487,7.244e-05,2]
[407663346,1772633431825,-3133.81055491,7.244e-05,2]
[407663347,1772633431841,-3927.53406066,7.244e-05,2]
[407663499,1772633433708,1070.88,6.9e-05,2]
[407663514,1772633437807,-1359.0,7.244e-05,2]
[407663517,1772633438014,-14655.96523969,7.244e-05,2]
[407663518,1772633438027,-3486.12324191,7.244e-05,2]
[407663524,1772633440377,-10911.60000023,7.172e-05,2]
[407663525,1772633440389,-1173.48435,7.172e-05,2]
[407663526,1772633440401,-1878.0,7.172e-05,2]
[407663545,1772633443880,-664.44939653,7.1e-05,2]
[407663572,1772633445877,-3080.11167156,7.1e-05,2]
[407663574,1772633445886,-31769.10664802,7.172e-05,2]
[407663589,1772633446019,-5583.3045271,7.172e-05,2]
[407663627,1772633465486,5000.0,6.9e-05,2]
[407663628,1772633487056,920.61439222,6.9e-05,2]
[407663629,1772633645825,5000.0,6.9e-05,2]
[407663630,1772633668934,5000.0,6.9e-05,2]
[407663631,1772633690614,315.42305556,6.9e-05,2]
[407663632,1772633716412,180.008319,3.095e-05,2]
[407663633,1772633877830,664.44939653,6.9e-05,2]
[407663645,1772634042703,1603.17410051,6.9e-05,2]
[407663646,1772634087060,-454.38008,9.869e-05,30]
[407663647,1772634110747,1000.0,9.871e-05,30]
[407663648,1772634110773,1000.0,9.871e-05,30]
[407663649,1772634110800,1000.0,9.871e-05,30]
[407663650,1772634110827,568.77,9.871e-05,30]
[407663651,1772634121798,431.23,9.871e-05,30]
[407663652,1772634244151,5000.0,6.9e-05,2]
[407663653,1772634251601,2719.17102561,6.9e-05,2]
[407663673,1772634631957,-178.662,6.931e-05,2]
[407663674,1772634631967,-518.0,6.931e-05,2]
[407663675,1772634631980,-422.86188452,6.946e-05,2]
[407663676,1772634631989,-13746.0165784,6.971e-05,2]
[407663677,1772634632000,-2711.43230879,6.971e-05,2]
[407663678,1772634632011,-7853.11114865,6.971e-05,2]
[407663679,1772634632022,-6005.46585419,6.971e-05,2]
[407663680,1772634632033,-2924.05903795,6.971e-05,2]
[407663950,1772634637765,-500.0,6.97e-05,2]
[407663951,1772634637775,-500.0,6.97e-05,2]
[407663952,1772634637785,-500.0,6.97e-05,2]
[407663953,1772634637795,-469.74728914,6.97e-05,2]
[407663954,1772634637805,-500.0,6.97e-05,2]
[407663955,1772634637814,-546.78701505,6.97e-05,2]
[407663957,1772634637824,-500.0,6.97e-05,2]
[407663959,1772634637833,-500.0,6.97e-05,2]
[407663961,1772634637842,-500.0,6.97e-05,2]
[407663963,1772634637850,-500.0,6.97e-05,2]
[407663964,1772634637858,-500.0,6.97e-05,2]
[407663966,1772634637866,-500.0,6.97e-05,2]
[407663968,1772634637874,-500.0,6.97e-05,2]
[407663970,1772634637883,-500.0,6.97e-05,2]
[407663972,1772634637892,-500.0,6.97e-05,2]
[407663973,1772634637903,-500.0,6.97e-05,2]
[407663974,1772634637912,-500.0,6.97e-05,2]
[407663975,1772634637921,-500.0,6.97e-05,2]
[407663976,1772634637930,-500.0,6.97e-05,2]
[407663977,1772634637949,-251.97853801,6.97e-05,2]
[407663978,1772634637958,-500.0,6.97e-05,2]
[407663979,1772634637968,-500.0,6.97e-05,2]
[407663981,1772634637981,-500.0,6.97e-05,2]
[407663983,1772634637991,-476.86142185,6.97e-05,2]
[407663986,1772634638309,-500.0,6.97e-05,2]
[407663987,1772634638319,-500.0,6.97e-05,2]
[407663988,1772634638329,-500.0,6.97e-05,2]
[407663989,1772634638338,-500.0,6.97e-05,2]
[407663990,1772634638347,-500.0,6.97e-05,2]
[407663991,1772634638357,-586.50838433,6.97e-05,2]
[407663992,1772634638367,-500.0,6.97e-05,2]
[407663994,1772634638378,-500.0,6.97e-05,2]
[407663995,1772634638388,-500.0,6.97e-05,2]
[407663996,1772634638398,-284.86447474,6.97e-05,2]
[407663997,1772634638408,-500.0,6.97e-05,2]
[407663998,1772634638417,-500.0,6.97e-05,2]
[407663999,1772634638427,-500.0,6.97e-05,2]
[407664000,1772634638436,-500.0,6.97e-05,2]
[407664001,1772634638446,-500.0,6.97e-05,2]
[407664002,1772634638455,-500.0,6.97e-05,2]
[407664003,1772634638465,-500.0,6.97e-05,2]
[407664004,1772634638477,-500.0,6.97e-05,2]
[407664005,1772634638487,-500.0,6.97e-05,2]
[407664006,1772634638497,-36060.76735518,6.971e-05,2]
[407664007,1772634638574,-921.45213247,6.971e-05,2]
[407664019,1772634640599,-14343.39999998,6.901e-05,2]
[407664022,1772634640858,5000.0,6.9e-05,2]
[407664036,1772634643382,-212.73011466,6.901e-05,2]
[407664037,1772634643391,-472.83647953,6.971e-05,2]
[407664038,1772634643402,-2021.30552104,6.971e-05,2]
[407664078,1772634645999,-5175.0,6.971e-05,2]
[407664090,1772634646128,-62263.18223013,6.971e-05,2]
[407664092,1772634646146,-7189.1,6.971e-05,2]
[407664094,1772634646304,-23924.07310326,6.971e-05,2]
[407664095,1772634646327,-9623.63072545,6.971e-05,2]
[407664097,1772634648729,792.4314053,6.9e-05,2]
[407664098,1772634657674,743.64539563,6.9e-05,2]
[407664100,1772634666943,305.61680609,6.9e-05,2]
[407664101,1772634667665,-300.0,6.97e-05,2]
[407664102,1772634667746,-300.0,6.971e-05,2]
[407664103,1772634667775,-1200.0,6.971e-05,2]
[407664104,1772634768314,4560.87116896,6.9e-05,2]
[407664105,1772634918621,964.813203,6.674e-05,2]
[407664107,1772635083695,220.23,2.997e-05,2]
[407664110,1772635193242,1380.26508413,0.000157,120]
[407664111,1772635203694,231.37,6.9e-05,2]
[407664112,1772635244266,739769.15101037,6.87e-05,2]
[407664136,1772635832248,-3888.03500567,6.599e-05,2]
[407664138,1772635832257,-888.25315491,6.666e-05,2]
[407664140,1772635832269,-4111.74684509,6.666e-05,2]
[407664142,1772635832279,-515.0,6.666e-05,2]
[407664143,1772635832288,-477.12411644,6.7e-05,2]
[407664145,1772635832297,-1200.0,6.732e-05,2]
[407664147,1772635832306,-300.0,6.8e-05,2]
[407664149,1772635832315,-300.0,6.8e-05,2]
[407664151,1772635832324,-300.0,6.8e-05,2]
[407664153,1772635832334,-300.0,6.8e-05,2]
[407664155,1772635832343,-300.0,6.8e-05,2]
[407664157,1772635832352,-1483.4063588,6.801e-05,2]
[407664165,1772635832421,-3055.69405897,6.801e-05,2]
[407664167,1772635832430,-2907.03949928,6.867e-05,2]
[407664240,1772635838958,-3750.03809953,6.867e-05,2]
[407664241,1772635838969,-31195.00454801,6.867e-05,2]
[407664242,1772635838979,-216346.92437594,6.87e-05,2]
[407664252,1772635841018,-11804.08078894,6.87e-05,2]
[407664253,1772635841031,-587.54399138,6.87e-05,2]
[407664254,1772635841042,-1125.34589103,6.87e-05,2]
[407664268,1772635844664,-7564.04153964,6.87e-05,2]
[407664269,1772635844902,-989.01004704,6.87e-05,2]
[407664293,1772635846340,-14169.89241884,6.87e-05,2]
[407664294,1772635846352,-17105.85042957,6.87e-05,2]
[407664295,1772635846579,-7252.69844,6.87e-05,2]
[407664296,1772635846591,-9623.63147738,6.87e-05,2]
[407664297,1772636174748,180.008319,2.883e-05,2]
[407664298,1772636202454,0.09643045,8.5e-05,3]
[407664300,1772636252005,-150.0,9.74e-05,30]
[407664301,1772636253672,-150.0,9.74e-05,30]
[407664302,1772636254602,-150.0,9.74e-05,30]
[407664303,1772636255456,-150.0,9.74e-05,30]
[407664304,1772636256366,-150.0,9.74e-05,30]
[407664305,1772636309600,-3337.3655,6.632e-05,2]
[407664306,1772636309632,-475.95326647,6.699e-05,2]
[407664307,1772636309660,-162.56,6.732e-05,2]
[407664308,1772636309686,-300.0,6.764e-05,2]
[407664309,1772636309710,-300.0,6.765e-05,2]
[407664310,1772636309736,-300.0,6.765e-05,2]
[407664311,1772636309762,-1200.0,6.765e-05,2]
[407664312,1772636309787,-300.0,6.765e-05,2]
[407664313,1772636309811,-272.15138105,6.766e-05,2]
[407664314,1772636309835,-500.0,6.766e-05,2]
[407664315,1772636309859,-392.10831355,6.766e-05,2]
[407664316,1772636309885,-500.0,6.766e-05,2]
[407664317,1772636309912,-500.0,6.766e-05,2]
[407664318,1772636309938,-500.0,6.766e-05,2]
[407664319,1772636309978,-500.0,6.766e-05,2]
[407664320,1772636310008,-500.0,6.766e-05,2]
[407664321,1772636310037,-500.0,6.766e-05,2]
[407664322,1772636310069,-300.66281242,6.766e-05,2]
[407664323,1772636310099,-500.0,6.766e-05,2]
[407664324,1772636310129,-500.0,6.766e-05,2]